Cogmind - Beta 16 @@@ ROGUE MODE // 2025.10.23 @ 23:09:16 Player: Briarspitter Result: Destroyed by F3-XBS(R) with Subdweller Beam Cannon Performance ------------- Evolutions (0) 0 Regions Visited (2) 400 Robots Destroyed (23) 115 Value Destroyed (467) 467 Prototype IDs (3) 60 Alien Tech Used (0) 0 Bonus (0) 0 TOTAL SCORE: 1042 Bonus ------- None Cogmind --------- Core Integrity 0/250 Matter 275/300 Energy 200/200 System Corruption 0% Temperature Cool (9) Movement Rolling (120) Ox1 Location -10/Subcaves Parts ------- > --- POWER (1) -------- Subdweller Power Source > --- PROPULSION (2) --- Subdweller Monowheel > --- UTILITY (2) ------ Small Storage Unit Hacking Suite > --- WEAPON (2) ------- Subdweller Beam Cannon Battle Cannon > --- INVENTORY (8) ---- High-capacity Battery (250) High-capacity Matter Pod (200) Sensor Array Subdweller Beam Cannon Battle Cannon Datajack Mining Claw Peak State ------------ > --- POWER ------------ Subdweller Power Source > --- PROPULSION ------- Aluminum Leg Subdweller Monowheel > --- UTILITY ---------- Small Storage Unit Hacking Suite > --- WEAPON ----------- Beam Cannon Battle Cannon > --- INVENTORY -------- High-capacity Battery High-capacity Matter Pod Subdweller Beam Cannon Subdweller Beam Cannon Battle Cannon Datajack Mining Claw Shrapnel Trap [Rating: 13] Favorites ----------- Power Ion Engine Engine Ion Engine Propulsion Aluminum Leg Leg Aluminum Leg Wheel Subdweller Monowheel Utility Small Storage Unit Device Seismic Detector Storage Small Storage Unit Hackware Hacking Suite Weapon EM Pulse Gun Energy Gun EM Pulse Gun Energy Cannon Beam Cannon Ballistic Gun Light Assault Rifle Ballistic Cannon Battle Cannon Slashing Weapon Mining Claw Special Melee Weapon Datajack Build | -11 -10 -10 ------- Run | Yrd Mat Sub Slots Evolved . | . . . Power . | . . . Propulsion . | . . . Utility . | . . . Weapon . | . . . Parts Attached 23 | 7 9 7 Power 4 | 1 1 2 Engine 4 | 1 1 2 Core . | . . . Reactor . | . . . Propulsion 5 | 2 2 1 Treads . | . . . Leg 4 | 2 2 . Wheel 1 | . . 1 Hover . | . . . Flight . | . . . Utility 4 | 2 1 1 Device 1 | 1 . . Storage 2 | 1 1 . Processor . | . . . Hackware 1 | . . 1 Protection . | . . . Artifact . | . . . Weapon 10 | 2 5 3 Energy Gun 2 | 1 1 . Energy Cannon 3 | . 1 2 Ballistic Gun 2 | 1 1 . Ballistic Cannon 1 | . . 1 Launcher . | . . . Special Weapon . | . . . Impact Weapon . | . . . Slashing Weapon 1 | . 1 . Piercing Weapon . | . . . Special Melee Weapon 1 | . 1 . Unidentified Prototypes . | . . . Parts Lost 8 | . 2 6 Power 2 | . 1 1 Propulsion 2 | . . 2 Utility 1 | . . 1 Weapon 3 | . 1 2 Highest Loss Streak 2 | . 1 2 To Critical Strikes . | . . . Average Backups 6 | 1 6 7 Power . | . . . Propulsion . | . . . Utility 3 | . 3 3 Weapon 1 | 1 1 2 Tool/Special . | . . . Unused Backups 8 | . 2 6 Power . | . . . Propulsion . | . . . Utility 5 | . 1 4 Weapon 3 | . 1 2 Tool/Special . | . . . Average Slot Usage (%) 97 | . 99 94 Engine 13 | . 13 13 Leg 25 | . 28 22 Device 12 | . 14 10 Storage 14 | . 14 14 Hackware 1 | . . 3 Energy Gun 12 | . 18 . Energy Cannon 7 | . 1 18 Ballistic Gun 1 | . 2 . Ballistic Cannon 1 | . . 4 Slashing Weapon 3 | . 3 1 Special Melee Weapon 1 | . . 2 Peak Build Rating 13 | 7 8 13 Average Rating 8 | 4 7 9 On Entrance 4 | . 7 7 Avg Prop Armor Cover (%) 9 | . . 9 Naked Turns . | . . . Heaviest Build 22 | 14 16 22 Greatest Support 20 | 20 20 20 Greatest Overweight (x) 1 | 1 . 1 Average Overweight (x) . | . . . Largest Inventory Capacity 15 | 8 15 8 Average Capacity 7 | 7 8 8 Most Carried 8 | 5 8 8 Average Carried 6 | 2 6 7 Final Capacity 8 | 8 8 8 Final Carried 7 | 2 7 7 Class Distribution -------------------- 78% | Mutant 21% | Scavenger-Mutant Dominant Class ---------------- Mutant | -10/Materials Scavenger-Mutant | -10/Subcaves Resources | -11 -10 -10 ----------- Run | Yrd Mat Sub Matter Collected 809 | 276 388 145 Remotely . | . . . Salvage Created 790 | 67 510 213 Parts 41 | 5 29 7 Haulers Intercepted 2 | . 2 . Recyclers Shooed . | . . . Parts Field Recycled . | . . . Retrieved Matter . | . . . Parts Self-Destructed 2 | . . 2 Prevented . | . . . Parts Restored . | . . . Kills | -11 -10 -10 ------- Run | Yrd Mat Sub Combat Hostiles Destroyed 15 | . 10 5 Melee 1 | . 1 . Guns 5 | . 5 . Cannons 8 | . 3 5 AOE 1 | . 1 . Classes Destroyed 8 | 2 5 1 Tunneler 1 | 1 . . Hauler 2 | . 2 . Recycler 2 | 1 1 . Operator 1 | . 1 . Watcher 2 | . 2 . Swarmer 6 | . 6 . Grunt 4 | . 4 . Subdweller 5 | . . 5 Best Kill Streak 4 | 2 4 2 Combat Bots Only 3 | . 3 2 Max Kills in Single Turn 2 | 1 2 1 Gunslinging . | . . . Exploded 1 | . 1 . Melee 1 | . 1 . Uniques/NPCs Destroyed . | . . . Combat | -11 -10 -10 -------- Run | Yrd Mat Sub Hostile Shots Fired 112 | . 58 54 Missed 30 | . 14 16 Hits 82 | . 44 38 Projectile 82 | . 44 38 Critical Strikes 4 | . 1 3 Damage Taken 1305 | . 449 856 Core 268 | . 96 172 Absorbed by Shields . | . . . Core Remaining (%) 100 | 100 . . Volleys Fired 121 | 6 85 30 Largest 2 | 2 2 2 Hottest 140 | 60 100 140 Shots Fired 233 | 12 162 59 Gun 159 | 12 146 1 Cannon 74 | . 16 58 Launcher . | . . . Special . | . . . Kinetic 79 | 6 58 15 Thermal 59 | . 16 43 Explosive . | . . . Electromagnetic 95 | 6 88 1 Robot Hit Streak 18 | 2 7 18 Robot Miss Streak 5 | 2 5 2 Penetration Max . | . . . Secondary Targets 1 | . 1 . Max Gunslinging Chain 1 | . 1 . Shots Hit Robots 93 | 6 40 47 Core Hits 33 | 4 20 9 Critical Kills . | . . . Critical Parts Destroyed . | . . . Critical Strikes 1 | . 1 . Corrupt 1 | . 1 . Melee Attacks 21 | . 19 2 Impact . | . . . Slashing 13 | . 12 1 Piercing . | . . . Sneak Attacks 5 | . 4 1 Combat Hostiles . | . . . Follow-up Attacks . | . . . Damage Inflicted 1729 | 55 800 874 Guns 482 | 55 416 11 Cannons 986 | . 123 863 Explosions 211 | . 211 . Melee 50 | . 50 . Ramming . | . . . Kinetic 302 | 29 25 248 Thermal 949 | . 334 615 Explosive . | . . . Electromagnetic 428 | 26 391 11 Impact . | . . . Slashing 50 | . 50 . Piercing . | . . . Highest Corruption . | . . . Average Corruption . | . . . Corruption Purged . | . . . Corruption Blocked . | . . . Overload Shots . | . . . Overflow Damage 28 | . 28 . Projectiles . | . . . Explosions 28 | . 28 . Melee . | . . . Knockbacks 4 | . . 4 Impact . | . . . Kinetic 4 | . . 4 Secondary . | . . . Self-Inflicted Damage 63 | . 63 . Shots 2 | . 2 . Rammed . | . . . Targets Rammed . | . . . Kicked . | . . . Crushed . | . . . Highest Temperature 351 | 40 351 280 Average Temperature 79 | 17 84 74 Received Heat Transfer 589 | . 60 529 Effects 4 | . 4 . Energy Bleed 2 | . 2 . Interference 2 | . 2 . Siege Activations . | . . . Martial Activations . | . . . Shielding Activations . | . . . Robots Disrupted . | . . . Combat Hostiles . | . . . Robots Corrupted . | . . . Combat Hostiles . | . . . Parts Fried . | . . . Impact Corruptions . | . . . Robots Melted . | . . . Combat Hostiles . | . . . Parts Melted 2 | . 1 1 Heat Transferred 1880 | . 659 1221 Parts Sabotaged . | . . . Parts Stolen . | . . . Parts Stripped . | . . . Power Chain Reactions 4 | . 4 . Alert | -11 -10 -10 ------- Run | Yrd Mat Sub Maximum Alert Level . | . . . Low Security (%) 100 | 100 100 . Level 1 . | . . . Level 2 . | . . . Level 3 . | . . . Level 4 . | . . . Level 5 . | . . . High Security . | . . . Max Security . | . . . Peak Influence 115 | 10 115 . Initial . | . . . Average 28 | 1 30 . Influence Increases 336 | 10 326 . Destroy 0b10 Robot/C 200 | . 200 . Destroy 0b10 Robot/NC 40 | 10 30 . Destroy Leader 48 | . 48 . Successful Hack 18 | . 18 . Destroy Structure 15 | . 15 . Lose Combat Pursuer 15 | . 15 . Influence Decreases 336 | 10 265 61 Entered New Map 30 | . . 30 Time Decay 275 | 10 245 20 Lost Part 31 | . 20 11 Squads Dispatched 4 | . 4 . Investigation 4 | . 4 . Extermination . | . . . Reinforcement . | . . . Assault . | . . . Garrison . | . . . Intercept . | . . . Searches Triggered . | . . . Construction Impeded . | . . . Haulers Reinforced . | . . . Active Scanning Responses . | . . . Cargo Convoy Interrupts . | . . . Stealth | -11 -10 -10 --------- Run | Yrd Mat Sub Distress Signals 2 | . 2 . Communications Jammed . | . . . Distress Signals . | . . . Times Spotted 24 | . 17 7 Peak Tracking Total 3 | . 3 2 Tactical Retreats 1 | . 1 . Traps | -11 -10 -10 ------- Run | Yrd Mat Sub Traps Triggered . | . . . Indirectly . | . . . Trap Hack Attempts . | . . . Triggered . | . . . Disarmed 1 | . 1 . Reprogrammed . | . . . Reused 1 | . . 1 Traps Extracted . | . . . Installed 1 | . . 1 Triggered . | . . . Most Traps Carried 1 | . . 1 Machines | -11 -10 -10 ---------- Run | Yrd Mat Sub Machines Disabled . | . . . Max in Single Turn . | . . . Machines Repaired . | . . . Machines Dismantled . | . . . Machines Sabotaged . | . . . Overloaded Fab Kills . | . . . Hacking | -11 -10 -10 --------- Run | Yrd Mat Sub Machines Accessed 11 | . 11 . Terminals 8 | . 8 . Fabricators . | . . . Repair Stations 1 | . 1 . Recycling Units 2 | . 2 . Scanalyzers . | . . . Garrison Access . | . . . Total Hacks 28 | . 28 . Successful 17 | . 17 . Failed 11 | . 11 . Catastrophic 1 | . 1 . Database Lockouts . | . . . Manual . | . . . Terminals 22 | . 22 . Fabricators . | . . . Repair Stations 4 | . 4 . Recycling Units 2 | . 2 . Scanalyzers . | . . . Garrison Access . | . . . Terminal Hacks 14 | . 14 . Record 3 | . 3 . Robot Analysis 2 | . 2 . Prototype ID Bank 2 | . 2 . Alert Level 1 | . 1 . Locate Traps 3 | . 3 . Disarm Traps 1 | . 1 . Hauler Manifests 1 | . 1 . Zone Layout 1 | . 1 . Fabricator Hacks . | . . . Repair Station Hacks 1 | . 1 . Scan Component 1 | . 1 . Recycling Unit Hacks 2 | . 2 . Report Inventory 2 | . 2 . Scanalyzer . | . . . Garrison Access Hacks . | . . . Unauthorized Hacks . | . . . Terminals . | . . . Fabricators . | . . . Repair Stations . | . . . Recycling Units . | . . . Scanalyzers . | . . . Garrison Access . | . . . Data Cores Recovered 1 | . 1 . Used . | . . . Hacking Detections 8 | . 8 . Full Trace Events 3 | . 3 . Feedback Events . | . . . Feedback Blocked . | . . . Robot Schematics Acquired . | . . . Robots Built . | . . . Authchips . | . . . Time . | . . . Total Robot Build Rating . | . . . Part Schematics Acquired . | . . . Parts Built . | . . . Authchips . | . . . Time . | . . . Total Part Build Rating . | . . . Part Studies Acquired . | . . . Parts Repaired . | . . . Time . | . . . Parts Recycled . | . . . Recycled Matter . | . . . Retrieved Matter . | . . . Retrieved Components . | . . . Parts Scanalyzed . | . . . Part Schematics Acquired . | . . . Parts Damaged . | . . . Bothacking | -11 -10 -10 ------------ Run | Yrd Mat Sub Used RIF Installer . | . . . Robots Hacked 3 | . 2 1 Non-combat 3 | . 2 1 Combat . | . . . Robot Hacks Applied 4 | . 3 1 parse_system 3 | . 2 1 no_distress 1 | . 1 . Relay Couplers Released . | . . . Fabnet Peak Effective % . | . . . Robots Rewired . | . . . Allies Hacked . | . . . Hacks Repelled . | . . . Allies | -11 -10 -10 -------- Run | Yrd Mat Sub Total Allies . | . . . Largest Group . | . . . Highest-Rated Group . | . . . Highest-Rated Ally . | . . . Total Orders . | . . . Ally Attacks . | . . . Total Damage . | . . . Kills . | . . . Allies Corrupted . | . . . Allies Melted . | . . . Intel | -11 -10 -10 ------- Run | Yrd Mat Sub Active Infowar (turns) 1331 | 20 946 365 Seismic 1331 | 20 946 365 Robot Analysis Total 2 | . 2 . Derelict Logs Recovered . | . . . Drone Launches . | . . . Drone Recoveries . | . . . Exploration | -11 -10 -10 ------------- Run | Yrd Mat Sub Turns Passed 1833 | 89 1124 620 Spaces Moved 1087 | 55 645 387 Core 22 | 22 . . Treads . | . . . Legs 971 | 33 645 293 Wheels 94 | . . 94 Hover . | . . . Flight . | . . . Fastest Speed 50 | 50 120 110 Average Speed 122 | 103 120 128 Slowest Speed 190 | 120 120 190 Overloaded Moves . | . . . Propulsion Burnouts . | . . . Robots Hopped . | . . . Potential Cave-ins . | . . . Cave-ins Triggered . | . . . Exploration Rate (%) 40 | 4 88 30 Regions Visited 2 Branch Regions 1 Pre-discovered Areas . | . . . Known Exits Taken . | . . . Unknown Exits Taken 2 | 1 1 . Scrap Searched . | . . . Spaces Dug 4 | . 4 . Terrain Destroyed 12 | . 12 . Melee 4 | . 4 . Projectile . | . . . AOE 8 | . 8 . Terrain Rammed . | . . . Walls Destroyed . | . . . Machines Disabled . | . . . Actions | -11 -10 -10 --------- Run | Yrd Mat Sub Total 1339 | 76 815 448 Wait 33 | . 33 . Move 1085 | 54 644 387 Hop . | . . . Pick Up 32 | 9 13 10 Fast Attach 1 | . . 1 Attach 13 | 7 2 4 Detach . | . . . Swap 18 | . 12 6 Drop 14 | . 7 7 Fire 121 | 6 85 30 Melee 21 | . 19 2 Ram . | . . . Kick . | . . . Crush . | . . . Escape Stasis . | . . . Rewire . | . . . Trap 1 | . . 1 Miscellaneous . | . . . Route ------- -11/Scrapyard -10/Materials (discovered 5 exits: [*Mat x2] / [*Min x2] / [*Sub]) -10/Subcaves (discovered 1 exit: [*Mat]) History --------- Turn | Location | Event 17 | -11/Scrapyard | Discovered new exit (range 14) 90 | -11/Scrapyard | Entered Materials 309 | -10/Materials | Build established: Mutant 451 | -10/Materials | Discovered new exit (range 9) 550 | -10/Materials | Discovered new exit (range 8) 589 | -10/Materials | Discovered new exit (range 16) 687 | -10/Materials | Discovered new exit (range 16) 929 | -10/Materials | Discovered new exit (range 15) 1214 | -10/Materials | Entered Subcaves 1215 | -10/Subcaves | Approached by a straggling Scientist 1249 | -10/Subcaves | Discovered new exit (range 6) 1598 | -10/Subcaves | Build established: Scavenger-Mutant 1662 | -10/Subcaves | Core integrity fell below 50% 1746 | -10/Subcaves | Core integrity fell below 20% 1834 | -10/Subcaves | Destroyed by F3-XBS(R) with Subdweller Beam Cannon Last Messages --------------- 01705_ Acquired 1 matter. 01707_ Subatomizers dissect the Sub. Optics. 01707_ Acquired 5 matter. 01708_ Acquired 31 matter. 01710_ Acquired 4 matter. 01716_ Acquired Sub. Monowheel. 01755_ Aluminum Leg destroyed. 01765_ Subatomizers dissect the Sub. Optics. 01788_ Beam Cannon destroyed. 01795_ Dropped Shrapnel Trap. 01795_ Installed Shrapnel Trap. 01804_ Acquired 15 matter. 01807_ Acquired Sensor Array. 01809_ 7S-ZTX(R) triggered Shrapnel Trap. 01809_ An expanding cloud of shrapnel blasts out in all directions. 01809_ 7S-ZTX(R) destroyed. 01810_ Subatomizers dissect the Broken Sub. Power Source. 01826_ F3-XBS(R) knocked back. Map ----- +----------------------------------------------------+ | ?????????????????????????????????????????????????? | | ?????????????????????????????????????????????????? | | ?????????????????????????????????????????????????? | | ?????????????????????????????????????????????????? | | ?????????????????????????????????????????????????? | | ?????????????????????????????????????????????????? | | ?????????????????????????????????????????????????? | | ?????????????????????????????????????????????????? | | ?????????????????????????????????????????????????? | | ?????????????????????????????????????????????????? | | ?????????????????????????????????????????????????? | | ?????????????????????????????????????????????????? | | ?????????????????????????????????????????????????? | | ??????????????????????????? ???????????????????? | | ??????????????? ??????????? ???????????????????? | | ??????????????# ????????# ???????????????????? | | ??????????????# ??????## ???????????????????? | | ??????????????# ?????## ???????????????????? | | ?????????????## ?????# ????????????????????? | | ?????????????# #????# ????????????????????? | | ??????????????# ###?#"""#????????????????????? | | ##?????????????# ###" "##???????????????????? | | #????????###### ##" "%#??##???????????????? | | ##??????## ### #???????????????? | | ##????## | ! R " #???????????????? | | ## ##??? ## @ "% #???????????????? | | ?# #??# # # # "" ""###???????????? ## | | ## ###### * """##???????????? # | | # ### # %""""###????????????? | | ## ## !" ##??????????????? | | ?# # #???# " #??????????????? | | ?## #### #????## " #???????????????? | | ?## ##?# #?????# ;#?????####?????? | | # ##??# ####### ####### #??????# | | #### # # # " %# ## ##?????# | | ## """ "##?#### | | ] # """" ### | | # #### # """ ### # | | ### ## ##??## # ############### | | ??####### #????# ###???????????# | | ????????# #????# #?????????????## #### | | ????????# ##??## #??????????????#######??## | | ????????# #### #????????????????????##??## | | ????????# ##???????????????????## #### | | ????????#########????????????????????# & | | ?????????????????????????????????????# | | ?????????????????????????????????????# | | ????????????????????????????????????# ! | | ????????????????????????????????????# | | ???????????????????????????????????# ##### # | +----------------------------------------------------+ Best States ------------- Heat Dissipation 25 Energy Generation 15 Energy Capacity 250 Matter Stores 300 Matter Capacity 300 Sight Range 16 Terrain Scan Density 10 Evasion (%) 55 Offensive Hacking 10 Item Schematics ----------------- None Robot Schematics ------------------ None Fabricated ------------ Nothing Repaired ---------- Nothing Studied --------- None Alien Tech Used ----------------- None Achievements -------------- None Challenges ------------ None Game ------ Seed BladePotentialInterface Manual? 0 Play Time 00:44:34 Cumulative 25.6 hours Start 2025.10.23 @ 22:11:25 End 2025.10.23 @ 23:09:16 Sessions 1 Manual Loads 0 Difficulty Rogue Special Mode None Game No. 24 Rogue 24 Adventurer 0 Explorer 0 Win Type - Total 0 Types 0/0/0/0/0/0/0/0/0/0 Lore% 18 Gallery% 25 Achievement% 15 Wizard Run 0 Options --------- Layout 1 ASCII 0 Keyboard 0 Movement Mouse Keybinds 0 Fullscreen 1 Font 24/Smallcaps Map View 50x35 Zoom Use 0% Tactical HUD 1 Map Filters NONE Filters NONE Steam 1 RUN: 7397bc82-08b7-461c-ab73-f062990c4a3e